bitfinex-derivatives/quotes_ETHF0:USTF0_20230902
["timestamp","ask_amount","ask_price","bid_price","bid_amount"]
[1693636420776,19.59135299,1633.2,1633.1,6.43519427]
[1693636421073,19.59135299,1633.2,1633.1,4.13808427]
[1693636421474,21.19825107,1633.2,1633.1,4.13808427]
[1693636422374,21.19825107,1633.2,1633.1,6.43521427]
[1693636422568,21.19806603,1633.2,1633.1,6.43521427]
[1693636427275,21.19806603,1633.2,1633.0,4.3519647]
[1693636427470,15.69406603,1633.2,1633.1,2.29711]
[1693636427776,20.02281479,1633.2,1633.1,4.59422]
[1693636427970,20.43376671,1633.2,1633.1,4.59422]
[1693636428172,21.60901795,1633.2,1633.1,4.59422]
[1693636428476,20.00230491,1633.2,1633.1,4.59422]
[1693636428669,18.82705367,1633.2,1633.1,4.59422]
[1693636432280,20.00230491,1633.2,1633.1,4.59422]
[1693636435576,21.60901795,1633.2,1633.1,4.59422]
[1693636443687,20.00230491,1633.2,1633.1,4.59422]
[1693636445285,22.48570491,1633.2,1633.1,4.59422]
[1693636448891,24.09241795,1633.2,1633.1,4.59422]
[1693636450292,22.48570491,1633.2,1633.1,4.59422]
[1693636458094,24.09241795,1633.2,1633.1,2.29711]
[1693636458295,24.09241795,1633.2,1633.1,4.59425]
[1693636458790,24.89577447,1633.2,1633.1,4.59425]
[1693636462596,23.72052323,1633.2,1633.1,4.59425]
[1693636462893,24.89602965,1633.2,1633.1,4.59425]
[1693636465993,24.09223154,1633.2,1633.1,4.59425]
[1693636469802,25.0330362,1633.2,1633.1,4.59425]
[1693636475907,25.0330362,1633.2,1633.1,4.54425]
[1693636479415,25.0330362,1633.2,1633.1,2.24711]
[1693636480917,27.44310576,1633.2,1633.1,2.24711]
[1693636481109,25.83683431,1633.2,1633.1,2.24711]
[1693636488027,25.83683431,1633.2,1633.0,6.6492147]
[1693636488226,7.10983137,1633.1,1633.0,6.6492147]
[1693636488425,16.29839137,1633.1,1633.0,6.6492147]
[1693636489030,14.69256,1633.1,1633.0,6.6492147]
[1693636489320,14.69256,1633.1,1633.0,0.0091847]
[1693636489526,10.0612,1632.9,1632.7,6.89291]
[1693636489727,14.69424,1632.8,1632.7,2.29763]
[1693636489930,17.17114,1632.8,1632.7,2.29763]
[1693636490629,17.17114,1632.8,1632.6,11.87277186]
[1693636490928,17.17114,1632.8,1632.6,7.63820186]
[1693636490929,8.78211544,1632.7,1632.6,7.63820186]
[1693636491122,15.67521544,1632.7,1632.6,7.63820186]
[1693636493228,15.67521544,1632.7,1632.6,4.59552]
[1693636494626,15.67521544,1632.7,1632.6,6.89336]
[1693636494822,15.67521544,1632.7,1632.6,4.59552]
[1693636495520,17.97291544,1632.7,1632.6,4.59552]
[1693636496532,17.97291544,1632.7,1632.6,6.89336]
[1693636496931,17.97291544,1632.7,1632.6,4.59552]
[1693636497525,17.97291544,1632.7,1632.6,6.89336]
[1693636497829,17.97291544,1632.7,1632.6,4.59552]
[1693636498024,17.97291544,1632.7,1632.6,6.89336]
[1693636498223,17.97291544,1632.7,1632.6,4.59552]
[1693636499630,17.97291544,1632.7,1632.6,2.29775]
[1693636499924,17.97291544,1632.7,1632.6,4.59559]
[1693636501626,0.0612,1632.4,1632.2,10.22657344]
[1693636501831,15.26594352,1632.3,1632.2,6.89501]
[1693636502125,17.70554352,1632.3,1632.2,6.89501]
[1693636502321,18.11649544,1632.3,1632.2,6.89501]
[1693636511833,12.61249544,1632.3,1632.2,6.89501]
[1693636512041,18.11649544,1632.3,1632.2,6.89501]
[1693636516442,12.54012,1632.3,1632.2,9.19341]
[1693636516646,0.00918977,1632.4,1632.2,14.69741]
[1693636516939,2.30730977,1632.4,1632.3,11.46297648]
[1693636517145,6.90354977,1632.4,1632.3,11.46297648]
[1693636517544,6.90354977,1632.4,1632.3,9.16471648]
[1693636517741,12.40754977,1632.4,1632.3,9.16471648]
[1693636522552,15.27471329,1632.4,1632.3,9.16471648]
[1693636523554,12.40754977,1632.4,1632.3,9.16471648]
[1693636523749,15.27471329,1632.4,1632.3,9.16471648]
[1693636525356,12.40754977,1632.4,1632.3,9.16471648]
[1693636530059,15.27471329,1632.4,1632.3,9.16471648]
[1693636530849,12.40754977,1632.4,1632.3,9.16471648]
[1693636532049,12.41332694,1632.4,1632.3,9.16471648]
[1693636533261,15.28049046,1632.4,1632.3,9.16471648]
[1693636533557,17.91399046,1632.4,1632.3,9.16471648]
[1693636533756,17.91399046,1632.4,1632.3,6.89478]
[1693636534961,15.04682694,1632.4,1632.3,6.89478]
[1693636536064,17.91399046,1632.4,1632.3,6.89478]
[1693636539268,17.97529046,1632.4,1632.3,6.89478]
[1693636544573,20.27341046,1632.4,1632.3,6.89478]
[1693636544771,20.27341046,1632.4,1632.3,4.59652]
[1693636545176,20.27341046,1632.4,1632.3,9.41045916]
[1693636546969,21.44815745,1632.4,1632.2,9.41064916]
[1693636547172,21.44815745,1632.4,1632.2,9.41061916]
[1693636547173,8.29645192,1632.3,1632.2,9.41061916]
[1693636547367,15.19123192,1632.3,1632.2,11.70901916]
[1693636548164,15.19700127,1632.3,1632.2,11.70901916]
[1693636550068,2.92846352,1632.2,1632.0,4.82519331]
[1693636550375,0.0613,1632.0,1631.9,7.12391331]
[1693636550573,14.86448359,1632.0,1631.9,2.29872]
[1693636550762,14.86448359,1632.0,1631.9,4.59755]
[1693636551473,12.56579359,1632.0,1631.9,6.89638]
[1693636553273,15.09959359,1632.0,1631.9,6.89638]
[1693636554179,12.80090359,1632.0,1631.9,6.89638]
[1693636554480,15.09959359,1632.0,1631.9,9.76354352]
[1693636554774,10.50221359,1632.0,1631.9,12.06237352]
[1693636554979,12.80090359,1632.0,1631.9,9.19521]
[1693636555172,12.80090359,1632.0,1631.9,12.06237352]
[1693636556181,15.09959359,1632.0,1631.9,6.89638]
[1693636556680,12.80090359,1632.0,1631.9,9.76354352]
[1693636557078,15.09959359,1632.0,1631.9,9.76354352]
[1693636557678,15.09959359,1632.0,1631.9,6.89638]
[1693636557878,15.09959359,1632.0,1631.9,9.76354352]
[1693636558477,12.80090359,1632.0,1631.9,9.76354352]
[1693636559185,15.09959359,1632.0,1631.9,9.76354352]
[1693636560185,12.80090359,1632.0,1631.9,9.76354352]
[1693636560583,15.09959359,1632.0,1631.9,9.76354352]
[1693636561181,12.80090359,1632.0,1631.9,9.76354352]
[1693636561484,15.09959359,1632.0,1631.9,9.76354352]
[1693636562088,15.10533405,1632.0,1631.9,9.76354352]
[1693636562585,12.70222046,1632.0,1631.9,12.06237352]
[1693636562791,8.10484046,1632.0,1631.9,12.06237352]
[1693636562990,10.40353046,1632.0,1631.9,12.06237352]
[1693636563194,12.70222046,1632.0,1631.9,12.06237352]
[1693636563394,15.00091046,1632.0,1631.9,12.06237352]
[1693636566302,15.00091046,1632.0,1631.9,9.76354352]
[1693636566602,14.93961046,1632.0,1631.9,9.76354352]
[1693636572703,15.04403405,1632.0,1631.9,9.76354352]
[1693636572907,14.93961046,1632.0,1631.9,9.76354352]
[1693636573408,15.04403405,1632.0,1631.9,9.76354352]
[1693636573608,14.93961046,1632.0,1631.9,9.76354352]
[1693636581514,15.04403405,1632.0,1631.9,9.76354352]
[1693636582914,15.04403405,1632.0,1631.9,6.89638]
[1693636585716,15.10533405,1632.0,1631.9,6.89638]
[1693636585925,17.40402405,1632.0,1631.8,4.5978]
[1693636586113,15.11027192,1631.9,1631.8,4.5978]
[1693636586517,17.67397192,1631.9,1631.8,2.29888]
[1693636586819,17.67397192,1631.9,1631.8,4.59785]
[1693636587019,17.67970456,1631.9,1631.8,4.59785]
[1693636587413,15.38087456,1631.9,1631.8,6.89682]
[1693636593829,15.38087456,1631.9,1631.8,12.52062768]
[1693636595826,15.38087456,1631.9,1631.8,15.3877912]
[1693636596032,15.38087456,1631.9,1631.8,12.52062768]
[1693636599030,15.38087456,1631.9,1631.8,15.3877912]
[1693636600935,14.96992264,1631.9,1631.8,9.76398352]
[1693636602823,14.96992264,1631.9,1631.8,6.89682]
[1693636603025,14.96992264,1631.9,1631.8,9.76398352]
[1693636603226,0.00573264,1631.9,1631.8,12.06295352]
[1693636603426,0.00573264,1631.9,1631.8,18.4967149]
[1693636605326,5.504,1632.1,1631.9,2.26993648]
[1693636605529,5.504,1632.1,1632.0,19.98851608]
[1693636606028,5.50952779,1632.1,1632.0,19.98851608]
[1693636606225,0.00552779,1632.1,1632.0,19.86461352]
[1693636606432,5.504,1632.2,1632.0,25.49110599]
[1693636606734,5.504,1632.2,1632.0,27.76104247]
[1693636607134,0.00531518,1632.1,1632.0,27.76104247]
[1693636608029,5.504,1632.2,1632.0,27.76104247]
[1693636609032,5.504,1632.2,1632.1,5.62649247]
[1693636609341,5.504,1632.2,1632.1,14.82069247]
[1693636612533,5.504,1632.2,1632.1,9.1942]
[1693636612735,5.504,1632.2,1632.1,14.82069247]
[1693636613440,5.504,1632.2,1632.1,9.1942]
[1693636614137,5.50932299,1632.2,1632.1,9.1942]
[1693636620653,5.57062299,1632.2,1632.1,9.1942]
[1693636623656,8.20322299,1632.2,1632.1,9.1942]
[1693636624356,15.20287658,1632.2,1632.1,6.89565]
[1693636626046,15.20287658,1632.2,1632.1,4.5971]
[1693636627457,15.20287658,1632.2,1632.1,6.89565]
[1693636634066,15.20287658,1632.2,1632.1,9.76281352]
[1693636636067,15.09845299,1632.2,1632.1,9.76281352]
[1693636636270,15.20287658,1632.2,1632.1,9.76281352]
[1693636637365,15.20287658,1632.2,1632.1,4.5971]
[1693636637770,15.20287658,1632.2,1632.1,6.89565]
[1693636638167,15.20287658,1632.2,1632.1,9.76281352]
[1693636639266,15.20287658,1632.2,1632.1,7.46426352]
[1693636640063,15.20287658,1632.2,1632.1,9.76281352]
[1693636640664,10.50163299,1632.2,1632.1,14.3313]
[1693636640871,5.57062299,1632.2,1632.1,14.3313]
[1693636641070,7.86903299,1632.2,1632.1,14.3313]
[1693636641270,10.16744299,1632.2,1632.1,14.3313]
[1693636641773,5.57062299,1632.2,1632.1,14.3313]
[1693636641961,7.86902299,1632.2,1632.1,14.3313]
[1693636642164,10.16742299,1632.2,1632.1,14.3313]
[1693636643870,5.57062299,1632.2,1632.1,14.3313]
[1693636644072,10.16744299,1632.2,1632.1,14.3313]
[1693636646370,7.86903299,1632.2,1632.1,14.3313]
[1693636646571,5.57062299,1632.2,1632.1,14.3313]
[1693636646873,7.86903299,1632.2,1632.1,14.3313]
[1693636647373,10.16744299,1632.2,1632.1,14.3313]
[1693636649581,10.16744299,1632.2,1632.1,19.95779247]
[1693636654385,10.16744299,1632.2,1632.1,14.3313]
[1693636655088,5.50932299,1632.2,1632.1,14.3313]
[1693636655290,0.00918977,1632.4,1632.1,19.8353]
[1693636655585,0.00918977,1632.4,1632.3,11.49135]
[1693636655789,0.00918977,1632.4,1632.3,16.62845]
[1693636656289,0.01370896,1632.4,1632.3,16.62845]
[1693636661890,5.51770896,1632.4,1632.3,16.62845]
[1693636664697,5.51770896,1632.4,1632.3,22.25566072]
[1693636665494,8.51931336,1632.6,1632.3,27.75966072]
[1693636665689,8.51931336,1632.6,1632.3,30.29426072]
[1693636666095,0.00434749,1632.5,1632.3,30.29426072]
[1693636668298,0.00434749,1632.5,1632.3,24.66705]
[1693636671910,5.50834749,1632.5,1632.3,19.16305]
[1693636673510,0.00434749,1632.5,1632.4,5.504]
[1693636673714,0.00434749,1632.5,1632.4,15.21048356]
[1693636695429,0.06564749,1632.5,1632.4,15.21048356]
[1693636697828,2.57234749,1632.5,1632.4,15.21048356]
[1693636699337,2.57234749,1632.5,1632.4,20.83769428]
[1693636702038,2.57234749,1632.5,1632.4,15.33369428]
[1693636706145,2.57234749,1632.5,1632.4,9.70648356]
[1693636706340,2.57234749,1632.5,1632.4,15.33398591]
[1693636710543,5.07673179,1632.9,1632.4,15.33398591]
[1693636710544,0.0613,1632.9,1632.5,5.1371]
[1693636710744,7.37396179,1633.0,1632.8,5.504]
[1693636710745,4.5947,1633.0,1632.8,5.504]
[1693636711058,4.5947,1633.0,1632.9,12.02936]
[1693636711349,4.5947,1633.0,1632.9,14.32678]
[1693636712047,10.10275791,1633.0,1632.9,14.32678]
[1693636713749,12.66745791,1633.0,1632.9,14.32678]
[1693636715750,12.72845791,1633.0,1632.9,14.32678]
[1693636721357,7.22445791,1633.0,1632.9,14.32678]
[1693636735970,7.16345791,1633.0,1632.9,14.32678]
[1693636736668,7.16345791,1633.0,1632.9,14.38798]
[1693636739064,7.2678815,1633.0,1632.9,14.38798]
[1693636739477,9.46077791,1633.0,1632.9,14.38798]
[1693636739974,9.5652015,1633.0,1632.9,14.38798]
[1693636740177,9.46077791,1633.0,1632.9,14.38798]
[1693636759889,0.061,1632.9,1632.8,5.504]
[1693636760093,0.061,1632.7,1632.6,2.29783]
[1693636760290,14.7558,1632.7,1632.4,13.18862966]
[1693636760594,12.45894,1632.5,1632.4,12.70728933]
[1693636760789,12.45894,1632.5,1632.4,9.38785]
[1693636760991,12.45894,1632.5,1632.4,12.25501352]
[1693636761792,10.16096,1632.5,1632.4,12.25501352]
[1693636761990,10.51078192,1632.6,1632.4,12.31621352]
[1693636762198,0.061,1632.7,1632.6,0.0612]
[1693636762393,4.59528,1632.8,1632.6,12.11972352]
[1693636762701,7.86652066,1632.9,1632.7,2.33113648]
[1693636762702,5.56903066,1632.9,1632.7,2.33113648]
[1693636762902,7.86646066,1632.9,1632.8,9.75984352]
[1693636763191,10.16396066,1632.9,1632.8,9.75984352]
[1693636764198,10.16388066,1632.9,1632.8,12.05741352]
[1693636764400,0.00403066,1632.9,1632.8,17.62261352]
[1693636765196,7.11975583,1633.1,1633.0,0.0612]
[1693636765398,7.22417942,1633.1,1633.0,6.95304]
[1693636765597,7.11975583,1633.1,1633.0,9.82020352]
[1693636766597,9.52138942,1633.1,1633.0,2.29728]
[1693636766898,17.32259942,1633.1,1632.9,2.29732]
[1693636767104,12.39584,1633.0,1632.9,2.29732]
[1693636767299,12.80679192,1633.0,1632.9,2.29732]
[1693636767495,12.80679192,1633.0,1632.9,4.59474]
[1693636773218,0.061,1632.9,1632.8,6.89248]
[1693636773406,6.95326,1632.9,1632.8,6.89248]
[1693636773609,7.05768359,1632.9,1632.8,6.89248]
[1693636773812,7.05768359,1632.9,1632.8,4.59497]
[1693636774315,7.06171298,1632.9,1632.8,4.59497]
[1693636775512,7.06171298,1632.9,1632.8,2.29747]
[1693636775710,14.86313298,1632.9,1632.7,7.24667]
[1693636775910,0.41095192,1632.8,1632.7,7.24666]
[1693636776212,7.30363192,1632.8,1632.7,4.94902]
[1693636777815,9.60119192,1632.8,1632.7,4.94902]
[1693636780316,9.60119192,1632.8,1632.7,7.24672]
[1693636783013,15.10519192,1632.8,1632.7,7.24672]
[1693636785623,15.16619192,1632.8,1632.7,2.5902]
[1693636785815,0.061,1632.7,1632.6,0.0612]
[1693636786014,14.86022359,1632.7,1632.6,2.576]
[1693636787016,14.86022359,1632.7,1632.6,2.5148]
[1693636787216,14.8642397,1632.7,1632.6,2.5148]
[1693636794424,14.8642397,1632.7,1632.6,4.81264]
[1693636795021,14.8642397,1632.7,1632.6,2.5148]
[1693636798731,14.8642397,1632.7,1632.6,2.576]
[1693636800130,14.8642397,1632.7,1632.6,2.11977124]
[1693636800532,14.8642397,1632.7,1632.6,4.41761124]
[1693636801435,14.8642397,1632.7,1632.6,2.11977124]
[1693636802534,14.8642397,1632.7,1632.6,4.41761124]
[1693636807150,14.8642397,1632.7,1632.6,6.71545124]
[1693636808951,14.8642397,1632.7,1632.6,9.58261476]
[1693636809646,5.50801611,1632.7,1632.6,14.17829476]
[1693636809944,0.00401611,1632.7,1632.6,19.68229476]
[1693636810144,10.16001,1632.9,1632.6,19.68229476]
[1693636810350,10.16001,1632.9,1632.8,9.19024]
[1693636810745,10.16001,1632.9,1632.8,14.54110352]
[1693636810941,12.39649,1632.9,1632.8,14.60240352]
[1693636811145,12.40051939,1632.9,1632.8,14.60240352]
[1693636813554,14.86342298,1632.9,1632.8,7.07882]
[1693636814954,14.86342298,1632.9,1632.8,4.78126]
[1693636815150,14.86342298,1632.9,1632.8,7.07882]
[1693636815854,14.86342298,1632.9,1632.8,4.78126]
[1693636816058,14.86342298,1632.9,1632.8,7.07882]
[1693636823058,14.86342298,1632.9,1632.8,9.94598352]
[1693636824465,4.59886939,1632.9,1632.8,20.10640352]
[1693636824668,4.65986939,1632.9,1632.8,20.04510352]
[1693636824865,4.65986939,1632.9,1632.8,14.54110352]
[1693636826163,4.76429298,1632.9,1632.8,12.05740352]
[1693636826365,4.76429298,1632.9,1632.8,14.43210352]
[1693636826670,4.65986939,1632.9,1632.8,14.43210352]
[1693636827069,2.36244939,1632.9,1632.8,14.43210352]
[1693636832179,2.36462965,1632.9,1632.8,14.43210352]
[1693636833277,4.66204965,1632.9,1632.8,14.43210352]
[1693636834981,0.06720965,1632.9,1632.8,14.43210352]
[1693636837082,2.36462965,1632.9,1632.8,14.43210352]
[1693636839585,0.06720965,1632.9,1632.8,14.43210352]
[1693636841086,2.36462965,1632.9,1632.8,14.43210352]
[1693636841779,0.06720965,1632.9,1632.8,14.43210352]
[1693636843386,2.36462965,1632.9,1632.8,14.43210352]
[1693636843587,4.66204965,1632.9,1632.8,14.43210352]
[1693636846691,2.36462965,1632.9,1632.8,14.43210352]
[1693636849788,4.60104965,1632.9,1632.8,14.49330352]
[1693636850684,4.70547324,1632.9,1632.8,14.49330352]
[1693636851687,6.89846965,1632.9,1632.8,14.49330352]
[1693636852791,7.00289324,1632.9,1632.8,11.62614]
[1693636852990,7.00289324,1632.9,1632.8,14.49330352]
[1693636855596,4.60104965,1632.9,1632.8,14.49330352]
[1693636860299,4.70547324,1632.9,1632.8,11.62614]
[1693636860796,4.70547324,1632.9,1632.8,14.49330352]
[1693636863695,4.70547324,1632.9,1632.8,14.43210352]
[1693636867906,4.60104965,1632.9,1632.8,14.43210352]
[1693636868801,4.66204965,1632.9,1632.8,14.43210352]
[1693636872103,4.76647324,1632.9,1632.8,14.43210352]
[1693636873104,4.66204965,1632.9,1632.8,14.43210352]
[1693636874704,7.06389324,1632.9,1632.8,11.56494]
[1693636874905,7.06389324,1632.9,1632.8,9.26738]
[1693636875405,7.06389324,1632.9,1632.8,11.56494]
[1693636875806,7.06389324,1632.9,1632.8,9.26738]
[1693636876304,7.06389324,1632.9,1632.8,11.56494]
[1693636876807,7.06389324,1632.9,1632.8,9.19024]
[1693636880004,7.06389324,1632.9,1632.8,12.05740352]
[1693636881505,7.06389324,1632.9,1632.8,9.19024]
[1693636881708,7.06389324,1632.9,1632.8,9.75984352]
[1693636881907,12.56789324,1632.9,1632.8,9.75984352]
[1693636882408,12.56789324,1632.9,1632.8,6.89268]
[1693636887210,0.06720965,1632.9,1632.8,12.05740352]
[1693636887510,0.00620965,1632.9,1632.8,12.11860352]
[1693636891915,0.00620965,1632.9,1632.8,17.62260352]
[1693636894820,0.00620965,1632.9,1632.8,24.05575521]
[1693636902227,0.00620965,1632.9,1632.8,17.62260352]
[1693636905029,0.00620965,1632.9,1632.8,12.11860352]
[1693636910533,0.00620965,1632.9,1632.8,12.05740352]
[1693636912636,0.06720965,1632.9,1632.8,12.05740352]
[1693636923649,0.17163324,1632.9,1632.8,9.19024]
[1693636924248,0.17163324,1632.9,1632.8,12.05740352]
[1693636924644,0.06720965,1632.9,1632.8,12.05740352]
[1693636930055,0.06720965,1632.9,1632.8,18.49055521]
[1693636930449,0.06720965,1632.9,1632.8,12.05740352]
[1693636930857,0.06720965,1632.9,1632.8,18.49055521]
[1693636935658,0.17163324,1632.9,1632.8,18.49055521]
[1693636936659,2.46903324,1632.9,1632.8,18.49055521]
[1693636937061,7.06383324,1632.9,1632.8,6.89268]
[1693636937657,7.06383324,1632.9,1632.8,9.19024]
[1693636938159,7.06383324,1632.9,1632.8,6.89268]
[1693636938364,12.56783324,1632.9,1632.8,6.89268]
[1693636940165,12.56783324,1632.9,1632.8,9.19024]
[1693636966994,12.56783324,1632.9,1632.8,11.76504]
[1693636991111,12.56380385,1632.9,1632.8,11.76504]
[1693636991314,12.5675809,1632.9,1632.8,11.76504]
[1693637003125,12.5675809,1632.9,1632.8,9.46748]
[1693637012138,12.56540064,1632.9,1632.8,9.46748]
[1693637012334,12.5675758,1632.9,1632.8,9.46748]
[1693637115921,13.06158035,1632.9,1632.8,9.46748]
[1693637133339,13.06158035,1632.9,1632.8,12.33464352]
[1693637133840,12.95715676,1632.9,1632.8,12.33464352]
[1693637138346,15.35900035,1632.9,1632.8,7.16992]
[1693637139545,15.35900035,1632.9,1632.8,9.46748]
[1693637141450,13.06158035,1632.9,1632.8,9.46748]
[1693637144151,12.95715676,1632.9,1632.8,12.33464352]
[1693637144750,13.06158035,1632.9,1632.8,12.33464352]
[1693637146854,13.06158035,1632.9,1632.8,9.46748]
[1693637147761,13.06158035,1632.9,1632.8,7.16992]
[1693637147963,13.06158035,1632.9,1632.8,4.87236]
[1693637148157,13.06158035,1632.9,1632.8,2.5748]
[1693637153263,15.35900035,1632.9,1632.8,2.5748]
[1693637153466,0.0612,1632.7,1632.5,2.29792]
[1693637153664,12.50194359,1632.6,1632.4,2.77937455]
[1693637153869,5.91495192,1632.5,1632.4,0.48135455]
[1693637154166,12.80892192,1632.5,1632.3,4.59635]
[1693637154364,10.20468359,1632.4,1632.3,4.59635]
[1693637154757,12.50281359,1632.4,1632.2,6.90419921]
[1693637154959,12.50281359,1632.4,1632.2,2.30750921]
[1693637155369,12.50281359,1632.4,1632.2,4.60591921]
[1693637156468,12.50281359,1632.4,1632.2,7.17231921]
[1693637156668,12.50281359,1632.4,1632.2,9.58611921]
[1693637157269,14.80094359,1632.4,1632.2,4.98938921]
[1693637157467,0.41095192,1632.3,1632.2,7.28775921]
[1693637157766,5.00749192,1632.3,1632.2,7.28775921]
[1693637157969,7.30576192,1632.3,1632.2,4.98938921]
[1693637158165,7.30576192,1632.3,1632.2,7.28779921]
[1693637158664,7.30576192,1632.3,1632.2,7.77245741]
[1693637159071,7.30576192,1632.3,1632.2,5.47404741]
[1693637161971,12.80976192,1632.3,1632.2,5.47404741]
[1693637162371,12.81719506,1632.3,1632.2,5.47404741]
[1693637166673,12.81719506,1632.3,1632.2,7.77245741]
[1693637166974,12.81719506,1632.3,1632.2,10.63962093]
[1693637167375,12.40624314,1632.3,1632.2,7.77245741]
[1693637168277,12.40624314,1632.3,1632.2,5.47404741]
[1693637170879,12.40624314,1632.3,1632.2,7.77245741]
[1693637171275,12.40624314,1632.3,1632.2,5.47404741]
[1693637171582,14.70451314,1632.3,1632.2,5.47404741]
[1693637172281,12.40624314,1632.3,1632.2,5.47404741]
[1693637172678,12.40624314,1632.3,1632.2,7.77245741]
[1693637176987,12.40624314,1632.3,1632.2,5.20605741]
[1693637178293,12.46754314,1632.3,1632.2,5.20605741]
[1693637179789,12.46754314,1632.3,1632.2,0.49384741]
[1693637179992,0.0613,1632.2,1632.0,7.12769]
[1693637180190,12.91502551,1632.1,1632.0,2.5305]
[1693637180388,12.92244303,1632.1,1632.0,2.5305]
[1693637181191,12.92244303,1632.1,1631.9,4.88625]
[1693637181382,12.92244303,1632.1,1631.9,7.32515]
[1693637181587,15.22099303,1632.1,1631.9,7.32515]
[1693637182588,15.22099303,1632.1,1631.9,5.0264]
[1693637183091,15.22099303,1632.1,1631.9,5.51807438]
[1693637184091,17.60839303,1632.1,1631.9,5.51807438]
[1693637184482,20.08079303,1632.1,1631.9,5.51807438]
[1693637189095,0.0613,1632.0,1631.9,2.93057438]
[1693637189295,9.25606,1632.0,1631.9,2.93057438]
[1693637190801,9.25606,1632.0,1631.9,0.49167438]
[1693637190993,9.25606,1632.0,1631.8,4.67394]
[1693637191297,0.10442359,1631.9,1631.8,4.67394]
[1693637191596,7.00094359,1631.9,1631.8,4.67394]
[1693637191995,12.50494359,1631.9,1631.8,4.67394]
[1693637192393,12.51236376,1631.9,1631.8,2.375]
[1693637192595,12.51236376,1631.9,1631.8,2.87481292]
[1693637192793,12.51236376,1631.9,1631.8,5.17378292]
[1693637193493,12.51236376,1631.9,1631.8,4.71741737]
[1693637193692,12.51236376,1631.9,1631.8,2.41844737]
[1693637198299,12.51236376,1631.9,1631.8,0.49981292]
[1693637198499,12.51236376,1631.9,1631.7,10.43215852]
[1693637198700,0.41095192,1631.8,1631.7,10.43215852]
[1693637198999,5.00891192,1631.8,1631.7,10.43215852]
[1693637199505,7.30789192,1631.8,1631.7,10.43215852]
[1693637200198,5.00891192,1631.8,1631.7,15.59844204]
[1693637200699,4.59796,1631.8,1631.7,15.59844204]
[1693637203607,4.59796,1631.8,1631.7,16.07882379]
[1693637204310,4.59796,1631.8,1631.7,13.21166027]
[1693637205512,4.59796,1631.8,1631.7,10.91254027]
[1693637207306,4.60537729,1631.8,1631.7,10.91254027]
[1693637209815,4.60537729,1631.8,1631.7,13.77970379]
[1693637214524,4.60537729,1631.8,1631.7,10.91254027]
[1693637218923,4.66667729,1631.8,1631.7,10.91254027]
[1693637219921,6.96565729,1631.8,1631.7,10.91254027]
[1693637223229,6.96565729,1631.8,1631.7,13.77970379]
[1693637223528,4.66667729,1631.8,1631.7,13.77970379]
[1693637224423,4.66667729,1631.8,1631.7,10.91254027]
[1693637225332,4.66667729,1631.8,1631.7,13.77970379]
[1693637238128,6.96565729,1631.8,1631.7,6.54536379]
[1693637238335,14.76863729,1631.8,1631.7,1.37918027]
[1693637238532,14.76863729,1631.8,1631.6,2.29923]
[1693637238533,6.95866,1631.7,1631.6,2.29923]
[1693637238923,9.88983551,1631.7,1631.6,2.29923]
[1693637239335,9.89667415,1631.7,1631.6,2.29923]
[1693637240137,9.89667415,1631.7,1631.5,11.85787]
[1693637240336,12.31137415,1631.7,1631.5,9.55854]
[1693637241236,12.31137415,1631.7,1631.5,12.42570352]
[1693637241536,12.31137415,1631.7,1631.5,14.72510352]
[1693637243139,12.31137415,1631.7,1631.5,11.85794]
[1693637248947,12.31137415,1631.7,1631.5,9.55854]
[1693637250247,14.61049415,1631.7,1631.5,9.55854]
[1693637250650,14.61049415,1631.7,1631.5,7.25922]
[1693637251849,14.61049415,1631.7,1631.5,4.75652]
[1693637252745,5.504,1631.6,1631.4,3.98588005]
[1693637252944,7.41357551,1631.5,1631.4,3.79928005]
[1693637253143,9.77427551,1631.5,1631.4,1.37688005]
[1693637253343,6.89904,1631.3,1631.2,18.42924201]
[1693637253546,7.41441551,1631.3,1631.2,12.71187]
[1693637253748,9.95871551,1631.3,1631.2,12.71187]
[1693637254052,9.95871551,1631.3,1631.2,15.01169]
[1693637254753,9.95871551,1631.3,1631.2,15.91030241]
[1693637255147,9.95871551,1631.3,1631.2,8.82501241]
[1693637256154,9.95871551,1631.3,1631.2,9.32212876]
[1693637256753,9.95871551,1631.3,1631.2,11.62194876]
[1693637257347,9.95871551,1631.3,1631.2,9.32212876]
[1693637260657,15.46271551,1631.3,1631.2,3.81812876]
[1693637263656,15.46271551,1631.3,1631.2,6.11794876]
[1693637263856,15.46271551,1631.3,1631.2,3.81812876]
[1693637264057,15.46271551,1631.3,1631.2,1.39572876]
[1693637264261,15.46271551,1631.3,1631.1,6.89964]
[1693637265262,15.21809551,1631.3,1631.1,2.7810999]
[1693637265464,15.21809551,1631.3,1631.1,0.4812399]
[1693637265663,15.21809551,1631.3,1631.0,13.0350429]
[1693637266152,6.96118,1631.1,1631.0,13.0350429]
[1693637266354,7.06560359,1631.1,1631.0,13.0350429]
[1693637266664,7.06560359,1631.1,1631.0,12.56382]
[1693637266963,7.47655551,1631.1,1631.0,7.9638]
[1693637267261,7.48303543,1631.1,1631.0,10.2639]
[1693637268263,7.48303543,1631.1,1631.0,11.18711709]
[1693637269463,7.48303543,1631.1,1631.0,13.48722709]
[1693637270664,7.48303543,1631.1,1631.0,13.97862781]
[1693637271866,7.48303543,1631.1,1631.0,8.47462781]
[1693637274865,10.10345,1631.3,1631.0,21.44601133]
[1693637275069,5.504,1631.3,1631.1,2.26993648]
[1693637275361,10.10338,1631.3,1631.2,9.76662352]
[1693637276264,12.40307,1631.3,1631.2,7.46680352]
[1693637277054,12.50749359,1631.3,1631.2,2.29982]
[1693637277256,12.50749359,1631.3,1631.2,5.16698352]
[1693637278765,12.40307,1631.3,1631.2,5.16698352]
[1693637278971,12.50749359,1631.3,1631.2,5.16698352]
[1693637279567,12.40307,1631.3,1631.2,5.16698352]
[1693637279769,12.50749359,1631.3,1631.2,5.16698352]
[1693637280367,12.50749359,1631.3,1631.2,7.46680352]
[1693637280368,10.10338,1631.3,1631.2,7.46680352]
[1693637280565,10.10338,1631.3,1631.2,9.76662352]
[1693637281263,7.80369,1631.3,1631.2,9.76662352]
[1693637281471,5.504,1631.3,1631.2,9.76662352]
[1693637281963,0.10442359,1631.3,1631.2,6.89946]
[1693637282163,0.10442359,1631.3,1631.2,9.76662352]
[1693637282567,12.40286,1631.4,1631.2,9.76662352]
[1693637283470,0.00599781,1631.3,1631.2,9.76662352]
[1693637284370,12.50728359,1631.4,1631.2,9.76662352]
[1693637284670,12.91823551,1631.4,1631.2,9.76662352]
[1693637287269,12.50728359,1631.4,1631.2,9.76662352]
[1693637287469,12.50728359,1631.4,1631.3,2.26993648]
[1693637287671,10.20761359,1631.4,1631.3,6.86929648]